[Event "4NCL 2022-2023"]
[Site "Daventry"]
[Date "2023.01.15"]
[Round "4.39"]
[White "Carroll, Peter"]
[Black "Serbanescu, Diana-Maria"]
[Result "1-0"]
[ECO "B07"]
[WhiteElo "2107"]
[BlackElo "1995"]
[Annotator "TA"]
[PlyCount "227"]
[EventDate "2022.10.20"]
[EventType "team-tourn"]
[EventCountry "ENG"]
[SourceTitle "playchess.com"]
[Source "ChessBase"]
[SourceQuality "1"]
[TimeControl "40/6000+30:2400+30"]

{[%evp 11,227,19,22,18,30,22,26,19,18,22,38,37,45,6,21,5,15,-31,17,-8,23,-26,25,-1,7,22,24,-8,43,51,54,54,48,12,12,14,62,66,102,32,116,49,55,-25,58,26,14,0,0,0,0,0,0,-24,4,0,41,41,46,46,73,16,14,8,36,19,58,55,66,56,60,58,83,10,11,0,62,54,54,0,55,54,54,54,54,54,56,56,67,61,83,62,97,80,83,76,72,83,80,75,71,85,121,96,140,64,57,68,59,56,65,42,45,45,50,0,41,32,39,31,28,0,0,0,41,8,17,0,19,0,8,8,8,8,8,8,8,8,8,0,22,22,22,22,72,65,72,65,72,72,75,75,82,62,72,56,56,56,64,10,72,20,22,10,72,22,56,56,59,72,72,56,56,57,62,20,82,59,99,20,167,167,258,251,258,251,251,251,228,228,849,847,2019,1677,2122,1470,29965,4129,29972,29975,29978,29979,29979,29980,29980,29981,29981,29982,29982,29983,29983,29984,29984,29985,29985,29986,29986,29987]} 1. d4 {[%emt 0:04:36]} Nf6 {[%emt 0:00:35]} 2. Nc3 {[%emt 0:00:22]} d6 {[%emt 0:01:29]} 3. e4 {[%emt 0:00:08]} e5 {[%emt 0:02:54]} 4. Nge2 {[%emt 0:00:09]} Be7 {[%emt 0:03:45]} 5. g3 {[%emt 0:00:04]} Nbd7 {[%emt 0:02:01]} 6. Bg2 {[%emt 0:00:16]} c6 {[%emt 0:00:59]} 7. a4 {[%emt 0:00:15] B07: Pirc Defence: Miscellaneous Systems.} a5 {[%emt 0:02:11]} 8. O-O {[%emt 0:00:11]} O-O {[%emt 0:02:35]} 9. h3 {[%emt 0:00:06] White has an edge.} Re8 {[%emt 0:04:35]} 10. Be3 {[%emt 0:02:05]} Qc7 {[%emt 0:07:35]} 11. g4 {[%emt 0:00:24]} Nf8 {[%emt 0:08:08]} 12. Ng3 {[%emt 0:05:07]} Ng6 {[%emt 0:04:20] [#]} 13. Nf5 $146 {[%emt 0:11:45]} ({Predecessor:} 13. Qd2 Nd7 14. Nf5 Ndf8 15. Nxe7+ Qxe7 16. dxe5 dxe5 17. Bg5 f6 18. Be3 Ne6 19. Ne2 Rd8 20. Qc3 Qb4 21. Qxb4 axb4 22. b3 c5 {½-½ Mola,P-Imbrogno,R Formia op 1994 (2)}) 13... Bf8 {[%emt 0:04:28]} 14. Qd2 {[%emt 0:11:21]} (14. Bg5 $11) 14... Be6 {[%emt 0:18:31]} (14... h5 $15 {should be considered.}) 15. Rfe1 {[%emt 0:11:30]} Rab8 {[%emt 0:12:17]} 16. Bh1 {[%emt 0:05:59]} (16. Bg5 $142) 16... Ra8 {[%emt 0:03:52]} (16... h5 $142) 17. Rad1 {[%emt 0:06:29]} Rac8 {[%emt 0:06:47]} 18. Bg5 {[%emt 0:09:30]} Nd7 {[%emt 0:07:09]} 19. Re2 {[%emt 0:19:27]} f6 {[%emt 0:01:25]} (19... h6 $11 20. Be3 Nf6) 20. Be3 $1 $14 {[%emt 0:01:12]} (20. d5 fxg5 21. dxe6 Rxe6 $17) 20... Bc4 {[%emt 0:01:35]} 21. Ree1 {[%emt 0:00:02]} Be6 {[%emt 0:00:46]} 22. h4 {[%emt 0:02:04]} (22. b3 {seems wilder.} Nb8 23. d5 cxd5 24. Nxd5 Qxc2 25. Qxa5 Qxb3 26. Rb1) 22... exd4 {[%emt 0:03:24]} 23. Bxd4 {[%emt 0:00:58]} Bxf5 {[%emt 0:00:20]} (23... Nde5 $11 {is superior.}) 24. gxf5 {[%emt 0:00:34]} Nge5 {[%emt 0:00:23][%cal Od6d5]} 25. b3 {[%emt 0:01:04]} (25. Qf4 $16) 25... Rcd8 {[%emt 0:01:36]} (25... d5 $14) 26. f4 {[%emt 0:02:51]} (26. Ne2 $16) 26... Nf7 {[%emt 0:00:05][%cal Od6d5]} 27. Qf2 {[%emt 0:01:19]} ({White should try} 27. Bf2 $14) 27... Rc8 {[%emt 0:02:41] Black is weak on the light squares} (27... Nh6 $1 $11) 28. Bf3 {[%emt 0:01:21]} d5 {[%emt 0:03:09]} 29. exd5 {[%emt 0:01:22]} (29. Bh5 {feels hotter.} dxe4 30. Nxe4 Re7 31. Kg2) 29... Rxe1+ {[%emt 0:00:05]} 30. Rxe1 {[%emt 0:00:40]} Qxf4 {[%emt 0:00:04]} 31. dxc6 {[%emt 0:01:01]} bxc6 {[%emt 0:00:05]} 32. Bg2 {[%emt 0:03:22] This pair of bishops is nice.} Qxf2+ {[%emt 0:01:39]} 33. Kxf2 {[%emt 0:00:15]} Nfe5 {[%emt 0:00:39]} (33... c5 $5 34. Be3 $8 c4 $11) 34. Ne4 {[%emt 0:00:33]} Bb4 {[%emt 0:01:18]} 35. Rd1 {[%emt 0:01:19]} Kf8 {[%emt 0:01:19]} 36. c3 {[%emt 0:01:05]} (36. Ke2 $16) 36... Be7 $11 {[%emt 0:00:09]} 37. Ke2 {[%emt 0:01:26]} Rb8 {[%emt 0:01:55]} (37... c5 $5 {[%cal Rc5d4]} 38. Bf2 c4 $14) 38. Nd2 {[%emt 0:00:46]} Kf7 {[%emt 0:01:09]} 39. h5 {[%emt 0:00:58]} Rc8 {[%emt 0:00:36]} 40. Bg1 {[%emt 0:02:07] And now Nc4 would win.} Rb8 {[%emt 0:00:44]} 41. Rb1 {[%emt 0:00:00]} Bd6 {[%emt 0:01:03] [#]} 42. Nf1 {[%emt 0:02:21]} (42. Nf3 $1 $16) 42... Nc5 {[%emt 0:01:42]} 43. Nd2 {[%emt 0:04:04]} (43. Bxc5 $11 Bxc5 44. Nd2) 43... Ncd7 $14 {[%emt 0:03:21]} 44. Ne4 {[%emt 0:03:38] Dodges Bc5} Be7 {[%emt 0:01:30]} 45. Kd2 {[%emt 0:01:36]} (45. Kd1 $14) 45... g6 {[%emt 0:02:39]} (45... Nc4+ $1 $11 46. Ke2 Nde5) 46. hxg6+ {[%emt 0:01:12]} hxg6 {[%emt 0:00:06]} 47. fxg6+ {[%emt 0:00:04]} Kxg6 {[%emt 0:01:10]} 48. Kc2 {[%emt 0:00:49]} f5 {[%emt 0:04:08]} 49. Nd2 {[%emt 0:00:45]} c5 {[%emt 0:02:20]} 50. Re1 {[%emt 0:01:21]} Bf6 {[%emt 0:04:09]} 51. Bh2 {[%emt 0:00:51]} Rc8 {[%emt 0:02:18]} 52. Bb7 {[%emt 0:01:01]} Rh8 {[%emt 0:02:46]} 53. Rg1+ {[%emt 0:00:42]} Kf7 {[%emt 0:00:51]} 54. Bd5+ {[%emt 0:00:09]} Ke7 {[%emt 0:00:23]} 55. Bf4 {[%emt 0:00:11]} Rh4 {[%emt 0:02:29]} 56. Rf1 {[%emt 0:01:49]} Rh5 {[%emt 0:03:43]} 57. Re1 {[%emt 0:02:03] White is more active.} Rh4 {[%emt 0:01:02]} 58. Bxe5 {[%emt 0:02:02]} (58. Bg3 $16 {Nc4 would be deadly.} Rg4 59. Bxe5 Nxe5 60. Nc4) 58... Nxe5 {[%emt 0:05:37]} 59. Nc4 $1 {[%emt 0:02:23]} (59. Nf3 Rf4 $11) 59... Rh2+ {[%emt 0:02:11]} 60. Kb1 {[%emt 0:00:43]} Rf2 $1 {[%emt 0:00:04][%cal Oe7d7]} 61. Bb7 {[%emt 0:08:37]} (61. Nxe5 Bxe5 62. Re3 (62. Rxe5+ Kd6 $11) 62... Kf6 $15) 61... Ke6 {[%emt 0:01:24]} 62. Bc8+ {[%emt 0:00:01]} Kd5 {[%emt 0:00:19]} 63. Bb7+ {[%emt 0:00:05]} Ke6 {[%emt 0:00:14]} 64. Nxa5 {[%emt 0:00:27]} Kd6 {[%emt 0:01:21]} 65. Rd1+ {[%emt 0:02:59]} Kc7 {[%emt 0:00:09]} 66. Bd5 {[%emt 0:00:12]} (66. Rd5 $5 {[%cal Rd5c5]}) 66... f4 {[%emt 0:01:45]} 67. Nb7 {[%emt 0:03:38]} Nd7 {[%emt 0:00:28]} (67... Ng4 $5 {[%cal Rg4e3]} 68. Rd3 (68. Nxc5 Ne3 $11) 68... Ne3 69. Nxc5 Rf1+ 70. Kb2 Rf2+ 71. Kc1 Rf1+ 72. Kd2 (72. Kb2 Rf2+ 73. Kb1 Rf1+ 74. Kb2 $11) 72... Rf2+ 73. Kc1 (73. Ke1 $2 Rb2 $19) 73... Rf1+ 74. Kd2 (74. Kb2 Rf2+ 75. Kb1 Rf1+ 76. Kb2 $11) 74... Rf2+ 75. Kc1 $11 (75. Ke1 $2 Rb2 $19)) 68. Rd3 {[%emt 0:01:02]} (68. Be6 $5 {[%cal Rd1d7]} Kxb7 69. Rxd7+ Kc6 70. Rd3 $14) 68... Rh2 {[%emt 0:02:49]} 69. Be4 {[%emt 0:01:18]} (69. a5 $5 {[%cal Ra5a6]} Be7 70. a6 $11) 69... Re2 {[%emt 0:01:28]} 70. Bd5 {[%emt 0:02:49]} (70. Nd6 $5 {[%cal Rd6e8]} Be7 71. Nb5+ Kb6 72. Rxd7 Rxe4 73. Rd5 $14) 70... Re3 {[%emt 0:00:56]} 71. Rxe3 {[%emt 0:01:07]} fxe3 $11 {[%emt 0:00:06][%mdl 4096] Endgame KBN-KBN} 72. Kc2 {[%emt 0:00:12]} e2 {[%emt 0:00:46]} 73. Kd2 {[%emt 0:00:03]} Bxc3+ {[%emt 0:00:07][%mdl 64] Decoy, Promotion} 74. Kxe2 $1 {[%emt 0:00:03]} Bb4 {[%emt 0:00:42]} 75. Ke3 {[%emt 0:01:32]} Kb6 {[%emt 0:00:31]} 76. Nd6 {[%emt 0:00:21]} Ne5 {[%emt 0:00:44]} 77. Ke4 {[%emt 0:00:21]} Nd7 {[%emt 0:00:40]} (77... Bc3 $11) 78. Nc4+ {[%emt 0:00:24]} Kc7 {[%emt 0:00:26]} 79. Be6 {[%emt 0:00:43]} Nb6 {[%emt 0:00:13]} 80. Ne5 {[%emt 0:00:50]} Kd6 {[%emt 0:00:20]} 81. Bc4 {[%emt 0:00:09]} Nd7 {[%emt 0:00:47]} 82. Nd3 {[%emt 0:00:21] Hoping for Nxb4.} Ba5 {[%emt 0:00:08]} 83. Bb5 {[%emt 0:00:15] Strongly threatening Bxd7.} Nf6+ {[%emt 0:00:26]} 84. Kf5 {[%emt 0:00:25]} Nd5 {[%emt 0:00:22]} 85. Bc4 {[%emt 0:00:30]} ({Better is} 85. Ne5 $14 Bc3 86. Nf7+ Kc7 87. Ke4 Nf6+ 88. Kd3) 85... Ne7+ {[%emt 0:00:11]} (85... Ne3+ $11 86. Ke4 Nxc4 87. bxc4 Bd2) 86. Kf6 {[%emt 0:00:06]} ({White should play} 86. Ke4 $16) 86... Nc6 {[%emt 0:00:24]} 87. Nf4 {[%emt 0:00:46]} Nd8 {[%emt 0:01:13]} (87... Ne5 $11) 88. Ne2 {[%emt 0:01:04]} (88. Kf5 $16) 88... Bd2 {[%emt 0:00:17]} 89. Ng3 {[%emt 0:00:13] aiming for Ne4+.} Bc3+ {[%emt 0:00:39]} 90. Kf5 {[%emt 0:00:18] Threatens to win with Ne4+.} Bb4 {[%emt 0:00:14]} 91. Ne4+ {[%emt 0:00:02]} Kc6 {[%emt 0:00:53]} 92. Ke5 {[%emt 0:00:13]} Kb6 {[%emt 0:00:26]} 93. Bd5 {[%emt 0:00:16]} Kc7 {[%emt 0:01:12]} (93... Ka5 $1 $11 {remains equal.}) 94. Kf4 {[%emt 0:01:48]} Kb6 {[%emt 0:00:31][%cal Oc5c4] [#]} 95. Ke3 {[%emt 0:00:15]} (95. Nd6 $1 $16) 95... Kc7 {[%emt 0:00:57] A mistake that costs the game.} (95... c4 $1 $11 {and Black stays safe.}) 96. Kd3 $18 {[%emt 0:00:05]} Kb6 {[%emt 0:00:11]} (96... Nb7 {was worth a try.} 97. Bxb7 Kxb7) 97. Kc4 {[%emt 0:00:06]} Ba3 {[%emt 0:00:17]} 98. Nf2 {[%emt 0:01:32]} Bb4 {[%emt 0:00:09]} 99. Nd3 {[%emt 0:00:24]} Ba3 {[%emt 0:00:06]} 100. Ne5 {[%emt 0:00:04]} Kc7 $2 {[%emt 0:01:20]} (100... Ka5 101. Nd7 Bb4 102. Nxc5 Bd2) 101. Kb5 {[%emt 0:02:26]} Bb4 {[%emt 0:00:51]} 102. Nd3 {[%emt 0:02:52][%csl LRb4,LRc5]} Ba3 {[%emt 0:00:55]} 103. a5 {[%emt 0:00:49]} ({Less strong is} 103. Nxc5 Kd6 $14) 103... Kd6 {[%emt 0:00:35]} 104. Bc4 {[%emt 0:03:01]} (104. a6 $142 Kxd5 105. a7 Ne6 106. a8=Q+ (106. a8=B+ Kd4 $11) 106... Kd4 107. Qxa3 Nc7+ 108. Kc6 Ne8 109. Nxc5) 104... Nc6 {[%emt 0:00:20]} 105. Kb6 {[%emt 0:00:20] White mates.} Nb4 {[%emt 0:00:28]} 106. Nxb4 {[%emt 0:00:27][%mdl 64] Remove Defender} ({Worse is} 106. Nxc5 Nd5+ 107. Bxd5 Bxc5+ 108. Kb7 Kxd5 $11) 106... cxb4 {[%emt 0:00:02] KB-KB} 107. a6 {[%emt 0:00:11]} Bc1 {[%emt 0:01:02]} 108. a7 {[%emt 0:00:07]} Be3+ {[%emt 0:00:13]} 109. Kb7 {[%emt 0:00:03]} Bxa7 {[%emt 0:00:06]} 110. Kxa7 {[%emt 0:00:03]} Kc7 {[%emt 0:00:08]} 111. Ka6 {[%emt 0:00:04]} Kc6 {[%emt 0:00:03]} 112. Ka5 {[%emt 0:00:05]} Kc5 {[%emt 0:00:02]} 113. Bg8 {[%emt 0:00:07]} Kc6 {[%emt 0:00:03]} 114. Kxb4 {[%emt 0:00:05] Weighted Error Value: White=0.21 (precise) /Black=0.20 (precise)} 1-0

[Event "4NCL 2022-2023"]
[Site "Daventry"]
[Date "2023.01.15"]
[Round "4.40"]
[White "Franco, Gaston"]
[Black "Putar, Lara"]
[Result "0-1"]
[ECO "C06"]
[WhiteElo "2051"]
[BlackElo "1761"]
[Annotator "TA"]
[PlyCount "92"]
[EventDate "2022.10.20"]
[EventType "team-tourn"]
[EventCountry "ENG"]
[SourceTitle "playchess.com"]
[Source "ChessBase"]
[SourceQuality "1"]
[TimeControl "40/6000+30:2400+30"]

{[%evp 28,92,27,37,30,22,26,14,29,18,24,18,30,8,26,0,0,0,0,0,0,0,0,-35,0,0,0,0,0,0,0,0,0,0,0,0,0,0,0,0,0,0,0,0,0,0,0,0,0,-29978,-29979,-29979,-29980,-29980,-29979,-29979,-29974,-29974,-29975,-29973,-29973,-29973,-29974,-29982,-29982,-29982,-29983]} 1. e4 {[%emt 0:00:03]} e6 {[%emt 0:00:36]} 2. d4 {[%emt 0:00:08]} d5 {[%emt 0:00:05]} 3. Nd2 {[%emt 0:00:07]} Nf6 {[%emt 0:00:05]} 4. e5 {[%emt 0:00:05]} Nfd7 {[%emt 0:00:05]} 5. Bd3 {[%emt 0:00:07]} c5 {[%emt 0:00:06]} 6. c3 {[%emt 0:00:04]} Nc6 {[%emt 0:00:04]} 7. Ne2 {[%emt 0:00:04]} cxd4 {[%emt 0:00:06]} 8. cxd4 {[%emt 0:00:03]} f6 {[%emt 0:00:08]} 9. Nf4 {[%emt 0:00:06]} Nxd4 {[%emt 0:00:21]} 10. Qh5+ {[%emt 0:00:09]} Ke7 {[%emt 0:00:06]} 11. exf6+ {[%emt 0:00:06]} Nxf6 {[%emt 0:04:55]} 12. Ng6+ {[%emt 0:00:14]} hxg6 {[%emt 0:00:06]} 13. Qxh8 {[%emt 0:00:04]} Kf7 {[%emt 0:00:37]} 14. O-O {[%emt 0:00:37]} e5 {[%emt 0:07:16]} 15. Nb3 {[%emt 0:00:48]} Nxb3 {[%emt 0:03:51] C06: French Tarrasch: 3...Nf6 4 e5 Nfd7 5 Bd3 main lines.} (15... Bf5 16. Nxd4 Bxd3 17. Qh3 $16) 16. axb3 {[%emt 0:00:07]} Bf5 {[%emt 0:05:01]} 17. Bxf5 {[%emt 0:00:55]} gxf5 {[%emt 0:00:07] The position is equal.} 18. Bg5 {[%emt 0:01:00]} Bc5 {[%emt 0:14:23]} 19. Qh3 {[%emt 0:07:51]} Qd7 {[%emt 0:19:15]} 20. Bxf6 {[%emt 0:05:46]} Kxf6 {[%emt 0:00:34]} 21. b4 {[%emt 0:23:04]} Bb6 {[%emt 0:05:07]} 22. Ra3 {[%emt 0:04:55]} g6 {[%emt 0:08:51]} 23. Qh4+ {[%emt 0:17:16]} Ke6 {[%emt 0:00:52] [#]} 24. Re1 $146 {[%emt 0:01:52]} ({Predecessor:} 24. Rd1 Rg8 25. g4 e4 26. gxf5+ gxf5+ 27. Rg3 Rxg3+ 28. Qxg3 d4 29. h4 Qh7 30. Qg5 {½-½ Cawdery,D (2434)-Pon,M (2165) Livingstone FIDE zt 4.3 2017 (3)}) 24... e4 {[%emt 0:06:10]} 25. g4 {[%emt 0:14:21]} f4 {[%emt 0:11:33]} 26. Qg5 {[%emt 0:18:28][%csl LRf4,LRg6]} Qf7 {[%emt 0:00:54]} 27. Rd3 {[%emt 0:00:33]} Rd8 {[%emt 0:01:28] And now ...Qf6 would win. The board is on fire.} 28. Rxe4+ {[%emt 0:01:14]} dxe4 {[%emt 0:00:33]} 29. Rxd8 {[%emt 0:00:05]} Bxd8 {[%emt 0:00:16]} 30. Qxd8 $11 {[%emt 0:00:08][%mdl 4096] Endgame KQ-KQ} f3 {[%emt 0:08:52]} 31. h4 {[%emt 0:05:25]} Qf4 $1 {[%emt 0:04:19]} 32. Qc8+ {[%emt 0:00:20]} Kd5 {[%emt 0:00:42]} (32... Kf6 $2 33. Qf8+ (33. Qxb7 $2 {too greedy.} Qxg4+ 34. Kf1 Qg2+ 35. Ke1 Qg1+ {[%mdl 64] Deflection} 36. Kd2 Qxf2+ 37. Kc3 Qe3+ 38. Kc4 Qd3+ 39. Kc5 f2 $19) 33... Ke5 34. Qb8+ Ke6 35. Qxf4 $18) 33. Qxb7+ {[%emt 0:01:37]} Kc4 {[%emt 0:00:57]} 34. Qa6+ {[%emt 0:01:56]} Kxb4 {[%emt 0:00:45]} 35. Qxg6 {[%emt 0:02:00] Strongly threatening Qf5.} e3 $1 {[%emt 0:02:18] ( -> ...e2)} 36. Qg7 $1 {[%emt 0:01:16]} e2 {[%emt 0:00:51][%cal Re2e1]} (36... Kb3 $5 37. Qc3+ $8 (37. Qxa7 $2 {gets mated.} Qxg4+ 38. Kf1 Qh3+ 39. Kg1 Qg2#) 37... Ka2 38. Qxe3 Qxg4+ 39. Kf1 Qxh4 40. Qxf3 (40. Qxa7+ Kb1 $11) 40... Kxb2 $11) 37. Qb7+ $1 {[%emt 0:01:52]} Kc4 {[%emt 0:01:14][%cal Re2e1]} 38. Qa6+ $2 {[%emt 0:02:54][%mdl 8192] [#]} (38. Qc6+ $11 Kb3 39. Qc3+ Ka2 40. Qa3+ Kb1 41. Qd3+ Kxb2 42. Qb5+ Kc3 43. Qc6+ Qc4 44. Qxf3+ Kb2 45. Qb7+ Qb3 46. Qe7 Qd1+ 47. Kh2) 38... Kb3 {[%emt 0:00:49] Black mates.} 39. Qa3+ {[%emt 0:00:25]} Kc2 {[%emt 0:00:19][%cal Re2e1]} 40. Qc3+ {[%emt 0:00:16]} Kd1 {[%emt 0:01:09]} 41. Qd3+ {[%emt 0:41:25]} Qd2 {[%emt 0:43:59]} 42. Qb1+ {[%emt 0:00:00]} Qc1 {[%emt 0:00:00]} 43. Qd3+ {[%emt 0:00:00]} Ke1 {[%emt 0:00:00]} 44. b4 {[%emt 0:00:00]} Qb2 {[%emt 0:00:00]} 45. b5 {[%emt 0:00:00] [#]} Qb4 $1 {[%emt 0:00:00]} 46. Qxf3 {[%emt 0:00:00]} Qd4 {[%emt 0:00:00] Weighted Error Value: White=0.15 (very precise) /Black=0.03 (flawless)} 0-1

[Event "4NCL 2022-2023"]
[Site "Daventry"]
[Date "2023.01.15"]
[Round "4.41"]
[White "Ansell, Simon T"]
[Black "Speelman, Jon S"]
[Result "1/2-1/2"]
[ECO "C02"]
[WhiteElo "2337"]
[BlackElo "2500"]
[Annotator "TA"]
[PlyCount "30"]
[EventDate "2022.10.20"]
[EventType "team-tourn"]
[EventCountry "ENG"]
[SourceTitle "playchess.com"]
[Source "ChessBase"]
[SourceQuality "1"]
[TimeControl "40/6000+30:2400+30"]

{[%evp 9,30,0,28,32,30,15,21,17,36,0,0,0,16,-12,-13,-18,-13,-11,-5,-14,-23,-24,-20]} 1. e4 {[%emt 0:00:23]} e6 {[%emt 0:00:13]} 2. d4 {[%emt 0:00:50]} d5 {[%emt 0:00:06]} 3. e5 {[%emt 0:00:08]} Bd7 {[%emt 0:00:05]} 4. Nf3 {[%emt 0:01:24]} a6 {[%emt 0:00:05]} 5. Be2 {[%emt 0:04:58]} Bb5 {[%emt 0:00:26]} 6. O-O {[%emt 0:00:20] C02: French: Advance Variation.} Ne7 {[%emt 0:01:54][%cal Bg8e7,Be7f5,Bf5h4][%mdl 32]} 7. Nc3 {[%emt 0:11:56][%cal Bb1c3,Bc3e2,Be2f4][%mdl 32]} Bxe2 {[%emt 0:00:08]} 8. Nxe2 {[%emt 0:00:05] The position is equal.} Nf5 {[%emt 0:03:37] [#]} 9. g4 $146 {[%emt 0:10:15]} ({Predecessor:} 9. Ng3 Nxg3 10. hxg3 Be7 11. Nh2 h5 12. f4 g6 13. Be3 Nc6 14. b3 Qd7 15. c4 {0-1 Lesny,F (2066)-Nilsson,A (2228) Vellmar op 10th 2018 (7)}) 9... Nh4 {[%emt 0:00:14]} 10. Nf4 {[%emt 0:00:19][%cal Oc2c4]} c5 {[%emt 0:03:24]} 11. c3 {[%emt 0:04:54][%cal Oc3c4]} Nc6 {[%emt 0:00:51]} 12. Be3 {[%emt 0:00:08]} cxd4 {[%emt 0:04:21]} 13. cxd4 {[%emt 0:00:11]} Nxf3+ {[%emt 0:01:04]} 14. Qxf3 {[%emt 0:00:05]} Be7 {[%emt 0:02:35]} 15. Rad1 {[%emt 0:01:03]} O-O {[%emt 0:00:37] Not much happened in this game.   Weighted Error Value: White=0.11 (very precise) /Black=0.07 (flawless)} 1/2-1/2

[Event "4NCL 2022-2023"]
[Site "Daventry"]
[Date "2023.01.15"]
[Round "4.42"]
[White "Wadsworth, Matthew J"]
[Black "Gormally, Daniel W"]
[Result "1/2-1/2"]
[ECO "A24"]
[WhiteElo "2477"]
[BlackElo "2450"]
[Annotator "TA"]
[PlyCount "65"]
[EventDate "2022.10.20"]
[EventType "team-tourn"]
[EventCountry "ENG"]
[SourceTitle "playchess.com"]
[Source "ChessBase"]
[SourceQuality "1"]
[TimeControl "40/6000+30:2400+30"]

{[%evp 23,65,7,14,0,0,0,0,0,6,-9,0,0,0,-13,0,-60,-63,-70,-64,-65,-45,-49,-47,-33,8,8,8,8,8,8,8,8,8,8,12,8,8,8,8,8,10,12,15,14]} 1. c4 {[%emt 0:02:01]} Nf6 {[%emt 0:00:25]} 2. Nf3 {[%emt 0:00:12]} g6 {[%emt 0:00:32]} 3. g3 {[%emt 0:00:18]} Bg7 {[%emt 0:00:06]} 4. Bg2 {[%emt 0:00:10]} O-O {[%emt 0:00:43]} 5. O-O {[%emt 0:01:41]} d6 {[%emt 0:00:04]} 6. Nc3 {[%emt 0:00:25]} e5 {[%emt 0:00:12]} 7. d3 {[%emt 0:00:15]} Nbd7 {[%emt 0:00:16]} 8. Rb1 {[%emt 0:07:01]} a5 {[%emt 0:00:16]} 9. a3 {[%emt 0:01:09]} c6 {[%emt 0:00:06]} 10. e4 {[%emt 0:11:16]} Nc5 {[%emt 0:16:57]} 11. b4 {[%emt 0:13:04]} axb4 {[%emt 0:00:06]} 12. axb4 {[%emt 0:00:11]} Ne6 {[%emt 0:00:04]} 13. Be3 {[%emt 0:00:45] A24: English Opening vs King's Indian: Lines without ...Nc6.} Ng4 {[%emt 0:06:43]} 14. Bd2 {[%emt 0:00:45]} f5 {[%emt 0:00:31]} 15. exf5 {[%emt 0:11:59]} gxf5 {[%emt 0:00:07] [#]} 16. b5 $146 {[%emt 0:08:05]} ({Predecessor:} 16. Nh4 Nf4 17. Bf3 Nxd3 18. Bxg4 fxg4 19. Ne4 Nf4 20. Bxf4 exf4 21. Nxd6 Be6 22. Re1 fxg3 23. hxg3 {0-1 Wegerer,F (2290)-Freitag,M (2295) Graz op 1995 (8)}) 16... Bd7 {[%emt 0:03:55]} 17. bxc6 {[%emt 0:09:10]} bxc6 {[%emt 0:05:16]} 18. h3 {[%emt 0:06:50]} Nh6 {[%emt 0:03:20]} 19. c5 {[%emt 0:07:54]} Nxc5 $15 {[%emt 0:05:27][%cal Be6c5,Bc5e4,Be4d2,Bd2f1][%mdl 32]} 20. d4 {[%emt 0:01:22]} exd4 {[%emt 0:05:13]} 21. Bxh6 {[%emt 0:05:19]} Bxh6 {[%emt 0:05:04]} 22. Nxd4 {[%emt 0:00:08]} Rc8 {[%emt 0:12:49]} 23. Na4 {[%emt 0:08:00]} Ne4 {[%emt 0:09:04]} 24. Nb6 $1 {[%emt 0:02:00] The position is equal.} Rc7 $132 {[%emt 0:04:07][%mdl 2048] Black has counterplay} 25. Nxd7 {[%emt 0:03:10]} Qxd7 {[%emt 0:00:06]} 26. g4 {[%emt 0:00:41]} Nd2 {[%emt 0:00:18]} 27. Nxf5 {[%emt 0:00:29]} Rxf5 {[%emt 0:02:04]} 28. gxf5 {[%emt 0:00:51]} Nxf1 {[%emt 0:02:24]} 29. Rb8+ {[%emt 0:03:51]} ({But not} 29. Bxf1 Qxf5 30. Qg4+ (30. Rb8+ Bf8 $17) 30... Qxg4+ 31. hxg4 d5 $15) 29... Rc8 {[%emt 0:02:26]} 30. Rxc8+ {[%emt 0:01:38]} Qxc8 {[%emt 0:00:04]} 31. Qxd6 {[%emt 0:01:31]} Bf8 {[%emt 0:10:57]} 32. Qd3 {[%emt 0:00:19]} (32. Qxc6 $2 {perishes.} Qxc6 33. Bxc6 Nd2 $19) 32... Nd2 {[%emt 0:00:13] Wards off Qb3+} 33. Qxd2 {[%emt 0:00:13] Weighted Error Value: White=0.06 (flawless) /Black=0.06 (flawless)} 1/2-1/2